fUST/lending_fUST_20250611
["ID","MTS","AMOUNT","RATE_DAILY","PERIOD"]
[365344208,1749611439071,-402.0127051,0.00021095,4]
[365344209,1749611439080,-460.0,0.00021095,4]
[365344210,1749611439090,-441.22846031,0.00021095,4]
[365344211,1749611439099,-439.74926476,0.00021095,4]
[365344212,1749611439108,-495.49887423,0.00021095,4]
[365344213,1749611439117,-460.0,0.00021095,4]
[365344214,1749611439127,-380.86624157,0.00021095,4]
[365344215,1749611439137,-460.0,0.00021095,4]
[365344216,1749611439147,-460.0,0.00021095,4]
[365344217,1749611439156,-435.03460497,0.00021095,4]
[365344218,1749611439166,-430.0,0.00021095,4]
[365344219,1749611439176,-401.88033197,0.00021095,4]
[365344220,1749611439185,-460.0,0.00021095,4]
[365344221,1749611439194,-430.0,0.00021095,4]
[365344222,1749611439205,-460.0,0.00021095,4]
[365344223,1749611439215,-460.0,0.00021095,4]
[365344224,1749611439224,-460.0,0.00021095,4]
[365344225,1749611439234,-400.61325322,0.00021095,4]
[365344226,1749611439243,-430.0,0.00021095,4]
[365344227,1749611439253,-400.92727989,0.00021095,4]
[365344228,1749611439262,-433.46688363,0.00021095,4]
[365344229,1749611439272,-460.0,0.00021095,4]
[365344230,1749611439281,-460.0,0.00021095,4]
[365344231,1749611439291,-401.24653265,0.00021095,4]
[365344232,1749611439300,-460.0,0.00021095,4]
[365344233,1749611439309,-460.0,0.00021095,4]
[365344234,1749611439319,-460.0,0.00021095,4]
[365344235,1749611439328,-412.84586666,0.00021095,4]
[365344236,1749611439337,-460.0,0.00021095,4]
[365344237,1749611439347,-557.52864965,0.00021095,4]
[365344238,1749611439356,-460.0,0.00021095,4]
[365344239,1749611439365,-430.70497275,0.00021095,4]
[365344240,1749611439374,-460.0,0.00021095,4]
[365344241,1749611439383,-460.0,0.00021095,4]
[365344242,1749611439392,-460.0,0.00021095,4]
[365344243,1749611439401,-2568.64,0.00021095,4]
[365344244,1749611439411,-365.9606257,0.00021095,4]
[365344245,1749611439420,-460.0,0.00021095,4]
[365344246,1749611439431,-430.0,0.00021095,4]
[365344247,1749611439440,-460.0,0.00021095,4]
[365344248,1749611439450,-460.0,0.00021095,4]
[365344249,1749611439460,-460.0,0.00021095,4]
[365344250,1749611439470,-460.0,0.00021095,4]
[365344251,1749611439479,-1074.54,0.00021095,4]
[365344252,1749611439488,-898.9,0.00021095,4]
[365344253,1749611439498,-440.0,0.00021095,4]
[365344254,1749611439507,-460.0,0.00021095,4]
[365344255,1749611439517,-440.0,0.00021095,4]
[365344256,1749611439527,-423.0909058,0.00021095,4]
[365344257,1749611439536,-460.0,0.00021095,4]
[365344258,1749611439545,-571.52,0.00021095,4]
[365344259,1749611439555,-460.0,0.00021095,4]
[365344260,1749611439564,-440.0,0.00021095,4]
[365344261,1749611439574,-401.90449218,0.00021095,4]
[365344262,1749611439583,-460.0,0.00021095,4]
[365344263,1749611439592,-460.0,0.00021095,4]
[365344264,1749611439602,-460.0,0.00021095,4]
[365344265,1749611439611,-429.69656759,0.00021095,4]
[365344266,1749611439620,-404.5757698,0.00021095,4]
[365344267,1749611439630,-460.0,0.00021095,4]
[365344268,1749611439639,-460.0,0.00021095,4]
[365344269,1749611439649,-332.55719936,0.00021095,4]
[365344270,1749611439658,-460.0,0.00021095,4]
[365344271,1749611439668,-400.0,0.00021095,4]
[365344272,1749611439677,-370.85700147,0.00021095,4]
[365344273,1749611439687,-460.0,0.00021095,4]
[365344274,1749611439696,-440.0,0.00021095,4]
[365344275,1749611439705,-460.0,0.00021095,4]
[365344276,1749611439715,-253.054102,0.00021095,4]
[365344278,1749611439724,-460.0,0.00021095,4]
[365344280,1749611439733,-453.5303612,0.00021095,4]
[365344281,1749611439742,-186.56453165,0.00021095,4]
[365344282,1749611439751,-440.0,0.00021095,4]
[365344283,1749611439761,-440.0,0.00021095,4]
[365344284,1749611439771,-460.0,0.00021095,4]
[365344285,1749611439780,-403.81274075,0.00021095,4]
[365344286,1749611439789,-460.0,0.00021095,4]
[365344287,1749611439799,-445.814237,0.00021095,4]
[365344288,1749611439808,-462.32,0.00021095,4]
[365344289,1749611439817,-410.0,0.00021095,4]
[365344290,1749611439827,-253.38,0.00021095,4]
[365344291,1749611439836,-440.0,0.00021095,4]
[365344292,1749611439846,-440.0,0.00021095,4]
[365344293,1749611439856,-440.0,0.00021095,4]
[365344294,1749611439869,-412.65734642,0.00021095,4]
[365344295,1749611439878,-2431.91,0.00021095,4]
[365344296,1749611439887,-460.0,0.00021095,4]
[365344297,1749611439896,-394.1402983,0.00021095,4]
[365344298,1749611439907,-447.58388259,0.00021095,4]
[365344299,1749611439916,-334.46002821,0.00021095,4]
[365344300,1749611439925,-440.0,0.00021095,4]
[365344301,1749611439935,-460.0,0.00021095,2]
[365344302,1749611439945,-430.14055849,0.00021095,4]
[365344303,1749611439956,-533.17999333,0.00021095,4]
[365344304,1749611439967,-639.53,0.00021095,4]
[365344305,1749611439976,-440.0,0.00021095,4]
[365344306,1749611440093,-1104.85,0.00021095,4]
[365344307,1749611440103,-460.0,0.00021095,4]
[365344308,1749611440113,-1801.09,0.00021095,4]
[365344309,1749611440123,-440.0,0.00021095,4]
[365344310,1749611440132,-460.0,0.00021095,4]
[365344311,1749611440142,-460.0,0.00021095,4]
[365344312,1749611440151,-570.89,0.00021095,4]
[365344313,1749611440160,-460.0,0.00021095,4]
[365344314,1749611440170,-440.0,0.00021095,4]
[365344315,1749611440179,-440.0,0.00021095,4]
[365344316,1749611440189,-440.0,0.00021095,4]
[365344317,1749611440198,-440.0,0.00021095,4]
[365344318,1749611440208,-457.83825876,0.00021095,4]
[365344319,1749611440218,-1105.45,0.00021095,4]
[365344320,1749611440227,-460.0,0.00021095,4]
[365344321,1749611440236,-1228.62,0.00021095,4]
[365344322,1749611440246,-440.0,0.00021095,4]
[365344323,1749611440255,-2351.84,0.00021095,4]
[365344324,1749611440265,-460.0,0.00021095,4]
[365344325,1749611440274,-437.83320023,0.00021095,4]
[365344326,1749611440283,-596.98623839,0.00021095,4]
[365344327,1749611440292,-460.0,0.00021095,4]
[365344328,1749611440302,-430.0,0.00021095,4]
[365344329,1749611440311,-549.6636324,0.00021095,4]
[365344330,1749611440320,-460.0,0.00021095,4]
[365344331,1749611440329,-460.0,0.00021095,4]
[365344332,1749611440339,-402.46837324,0.00021095,4]
[365344333,1749611440348,-460.0,0.00021095,4]
[365344334,1749611440357,-491.01,0.00021095,4]
[365344335,1749611440367,-403.44585125,0.00021095,4]
[365344336,1749611440375,-440.0,0.00021095,4]
[365344337,1749611440385,-460.0,0.00021095,4]
[365344338,1749611440395,-460.0,0.00021095,4]
[365344339,1749611440404,-460.0,0.00021095,4]
[365344340,1749611440413,-1780.24,0.00021095,4]
[365344341,1749611440423,-460.0,0.00021095,4]
[365344342,1749611440433,-238.38541564,0.00021095,4]
[365344343,1749611440442,-460.0,0.00021095,4]
[365344344,1749611440451,-1357.43,0.00021095,4]
[365344345,1749611440460,-444.02298301,0.00021095,4]
[365344346,1749611440470,-440.0,0.00021095,4]
[365344347,1749611440480,-460.0,0.00021095,4]
[365344348,1749611440490,-460.0,0.00021095,4]
[365344349,1749611440499,-2382.77,0.00021095,4]
[365344350,1749611440508,-482.85335105,0.00021095,4]
[365344351,1749611440519,-440.0,0.00021095,4]
[365344352,1749611440528,-403.75576383,0.00021095,4]
[365344353,1749611440538,-503.19527479,0.00021095,4]
[365344354,1749611440548,-1293.71,0.00021095,4]
[365344355,1749611440557,-445.5969923,0.00021095,4]
[365344357,1749611440567,-460.0,0.00021095,4]
[365344358,1749611440576,-462.19905113,0.00021095,4]
[365344359,1749611440585,-440.0,0.00021095,4]
[365344360,1749611440595,-402.3643433,0.00021095,4]
[365344361,1749611440604,-451.05341154,0.00021095,4]
[365344362,1749611440613,-550.11216202,0.00021095,4]
[365344363,1749611440622,-449.97283349,0.00021095,4]
[365344364,1749611440632,-444.99437482,0.00021095,4]
[365344365,1749611440641,-416.29344934,0.00021095,4]
[365344366,1749611440651,-460.0,0.00021095,4]
[365344367,1749611440660,-771.31,0.00021095,4]
[365344368,1749611440669,-446.72075874,0.00021095,4]
[365344369,1749611440679,-400.0,0.00021095,4]
[365344370,1749611440688,-930.26,0.00021095,4]
[365344371,1749611440697,-460.0,0.00021095,4]
[365344372,1749611440706,-468.30236844,0.00021095,4]
[365344373,1749611440715,-502.74,0.00021095,4]
[365344374,1749611440724,-460.0,0.00021095,4]
[365344375,1749611440733,-439.29570342,0.00021095,4]
[365344376,1749611440742,-208.97807299,0.00021269,2]
[365344377,1749611440751,-6419.48061519,0.00021354,2]
[365344378,1749611440760,-500.0,0.00021364,2]
[365344379,1749611440770,-500.0,0.00021364,2]
[365344380,1749611440779,-500.0,0.00021364,2]
[365344381,1749611440788,-500.0,0.00021364,2]
[365344382,1749611440797,-500.0,0.00021364,2]
[365344383,1749611440807,-500.0,0.00021364,2]
[365344384,1749611440816,-500.0,0.00021364,2]
[365344385,1749611440826,-500.0,0.00021364,2]
[365344386,1749611440835,-500.0,0.00021364,2]
[365344387,1749611440844,-500.0,0.00021364,2]
[365344388,1749611440854,-500.0,0.00021364,2]
[365344389,1749611440866,-500.0,0.00021364,2]
[365344390,1749611440875,-500.0,0.00021364,2]
[365344391,1749611440884,-500.0,0.00021364,2]
[365344392,1749611440893,-431.25633194,0.00021364,2]
[365344393,1749611440902,-500.0,0.00021364,2]
[365344394,1749611440911,-500.0,0.00021364,2]
[365344395,1749611440921,-500.0,0.00021364,2]
[365344396,1749611440930,-500.0,0.00021364,2]
[365344397,1749611440941,-500.0,0.00021364,2]
[365344398,1749611440952,-500.0,0.00021364,2]
[365344399,1749611440963,-500.0,0.00021364,2]
[365344400,1749611440973,-500.0,0.00021364,2]
[365344401,1749611440984,-500.0,0.00021364,2]
[365344402,1749611440993,-500.0,0.00021364,2]
[365344403,1749611441003,-500.0,0.00021364,2]
[365344404,1749611441013,-500.0,0.00021364,2]
[365344405,1749611441023,-500.0,0.00021364,2]
[365344406,1749611441032,-500.0,0.00021364,2]
[365344407,1749611441041,-500.0,0.00021364,2]
[365344408,1749611441050,-500.0,0.00021364,2]
[365344409,1749611441059,-500.0,0.00021364,2]
[365344410,1749611441068,-500.0,0.00021364,2]
[365344411,1749611441077,-500.0,0.00021364,2]
[365344412,1749611441087,-500.0,0.00021364,2]
[365344413,1749611441096,-500.0,0.00021364,2]
[365344414,1749611441106,-500.0,0.00021364,2]
[365344415,1749611441116,-500.0,0.00021364,2]
[365344416,1749611441126,-500.0,0.00021364,2]
[365344417,1749611441135,-500.0,0.00021364,2]
[365344418,1749611441145,-500.0,0.00021364,2]
[365344419,1749611441155,-500.0,0.00021364,2]
[365344420,1749611441164,-500.0,0.00021364,2]
[365344421,1749611441174,-500.0,0.00021364,2]
[365344422,1749611441183,-500.0,0.00021364,2]
[365344423,1749611441193,-500.0,0.00021364,2]
[365344424,1749611441202,-500.0,0.00021364,2]
[365344425,1749611441212,-500.0,0.00021364,2]
[365344426,1749611441221,-500.0,0.00021364,2]
[365344427,1749611441231,-155.15847245,0.00021364,2]
[365344428,1749611441241,-500.0,0.00021364,2]
[365344429,1749611441250,-500.0,0.00021364,2]
[365344430,1749611441260,-500.0,0.00021364,2]
[365344431,1749611441270,-500.0,0.00021364,2]
[365344432,1749611441280,-500.0,0.00021364,2]
[365344433,1749611441290,-500.0,0.00021364,2]
[365344434,1749611441299,-500.0,0.00021364,2]
[365344435,1749611441309,-500.0,0.00021364,2]
[365344436,1749611441318,-500.0,0.00021364,2]
[365344437,1749611441327,-500.0,0.00021364,2]
[365344438,1749611441336,-500.0,0.00021364,2]
[365344439,1749611441345,-500.0,0.00021364,2]
[365344440,1749611441355,-500.0,0.00021364,2]
[365344441,1749611441364,-500.0,0.00021364,2]
[365344442,1749611441373,-500.0,0.00021364,2]
[365344443,1749611441382,-500.0,0.00021364,2]
[365344444,1749611441392,-500.0,0.00021364,2]
[365344445,1749611441401,-500.0,0.00021364,2]
[365344446,1749611441411,-259.59,0.00021368,2]
[365344447,1749611441422,-455.13762339,0.00021369,4]
[365344448,1749611441438,-420.0,0.00021369,4]
[365344449,1749611441457,-420.0,0.00021369,4]
[365344450,1749611441477,-420.0,0.00021369,4]
[365344451,1749611441498,-291.55963592,0.00021369,4]
[365344452,1749611441508,-390.0,0.00021369,4]
[365344453,1749611441518,-460.0,0.00021369,4]
[365344454,1749611441529,-306.25876271,0.00021369,4]
[365344455,1749611441538,-390.0,0.00021369,4]
[365344456,1749611441547,-420.0,0.00021369,4]
[365344457,1749611441557,-420.0,0.00021369,4]
[365344458,1749611441566,-390.0,0.00021369,4]
[365344459,1749611441576,-420.0,0.00021369,4]
[365344460,1749611441585,-513.97117762,0.00021369,4]
[365344461,1749611441595,-420.0,0.00021369,4]
[365344462,1749611441604,-390.0,0.00021369,4]
[365344463,1749611441614,-399.45953224,0.00021369,4]
[365344464,1749611441624,-390.0,0.00021369,4]
[365344465,1749611441633,-390.0,0.00021369,4]
[365344466,1749611441643,-460.0,0.00021369,4]
[365344467,1749611441652,-420.0,0.00021369,4]
[365344468,1749611441661,-420.0,0.00021369,4]
[365344469,1749611441671,-460.0,0.00021369,4]
[365344470,1749611441680,-460.0,0.00021369,4]
[365344471,1749611441690,-420.0,0.00021369,4]
[365344472,1749611441699,-410.0,0.00021369,4]
[365344473,1749611441709,-376.07624162,0.00021369,4]
[365344474,1749611441718,-481.83,0.00021369,4]
[365344475,1749611441727,-507.50500775,0.00021369,4]
[365344476,1749611441736,-460.0,0.00021369,4]
[365344477,1749611441745,-420.0,0.00021369,4]
[365344478,1749611441755,-442.86189167,0.00021369,4]
[365344479,1749611441764,-372.27098529,0.00021369,4]
[365344480,1749611441774,-460.0,0.00021369,4]
[365344481,1749611441783,-420.0,0.00021369,4]
[365344482,1749611441793,-420.0,0.00021369,4]
[365344483,1749611441802,-420.0,0.00021369,4]
[365344484,1749611441812,-434.10207386,0.00021369,4]
[365344485,1749611441821,-460.0,0.00021369,4]
[365344486,1749611441831,-431.64428755,0.00021369,4]
[365344487,1749611441840,-420.0,0.00021369,4]
[365344488,1749611441849,-420.0,0.00021369,4]
[365344489,1749611441859,-460.0,0.00021369,4]
[365344490,1749611441873,-460.0,0.00021369,4]
[365344491,1749611441883,-420.0,0.00021369,4]
[365344492,1749611441892,-460.0,0.00021369,4]
[365344493,1749611441902,-420.0,0.00021369,4]
[365344494,1749611441912,-420.0,0.00021369,4]
[365344495,1749611441922,-460.0,0.00021369,4]
[365344496,1749611441931,-460.0,0.00021369,4]
[365344497,1749611441941,-432.51419538,0.00021369,4]
[365344498,1749611441951,-460.0,0.00021369,4]
[365344499,1749611441961,-460.0,0.00021369,4]
[365344500,1749611441970,-382.67107503,0.00021369,4]
[365344501,1749611441979,-2568.64,0.00021369,4]
[365344502,1749611441988,-430.0254645,0.00021369,4]
[365344503,1749611441998,-420.0,0.00021369,4]
[365344504,1749611442007,-166.83309595,0.00021369,4]
[365344505,1749611442017,-402.98628406,0.00021369,4]
[365344506,1749611442027,-460.0,0.00021369,4]
[365344507,1749611442036,-1074.54,0.00021369,4]
[365344508,1749611442045,-898.9,0.00021369,4]
[365344509,1749611442054,-426.34444945,0.00021369,4]
[365344510,1749611442064,-169.84,0.00021369,4]
[365344511,1749611442073,-571.52,0.00021369,4]
[365344512,1749611442082,-280.67867808,0.00021369,4]
[365344513,1749611442092,-429.51197632,0.00021369,4]
[365344514,1749611442102,-434.34312915,0.00021369,4]
[365344515,1749611442111,-460.0,0.00021369,4]
[365344516,1749611442121,-460.0,0.00021369,4]
[365344517,1749611442130,-460.0,0.00021369,4]
[365344518,1749611442140,-460.0,0.00021369,4]
[365344519,1749611442149,-460.0,0.00021369,4]
[365344520,1749611442158,-346.48987573,0.00021369,4]
[365344521,1749611442168,-428.68529203,0.00021369,4]
[365344522,1749611442177,-460.0,0.00021369,4]
[365344523,1749611442186,-393.56700865,0.00021369,4]
[365344524,1749611442196,-2431.91,0.00021369,4]
[365344525,1749611442205,-392.91792797,0.00021369,4]
[365344526,1749611442214,-460.0,0.00021369,2]
[365344527,1749611442223,-639.53,0.00021369,4]
[365344528,1749611442233,-1104.85,0.00021369,4]
[365344529,1749611442242,-390.0,0.00021369,4]
[365344530,1749611442251,-1801.09,0.00021369,4]
[365344531,1749611442261,-367.58342151,0.00021369,4]
[365344532,1749611442271,-173.63569838,0.00021369,4]
[365344533,1749611442280,-570.89,0.00021369,4]
[365344534,1749611442290,-420.0,0.00021369,4]
[365344535,1749611442299,-1105.45,0.00021369,4]
[365344536,1749611442308,-437.61042507,0.00021369,4]
[365344537,1749611442317,-1228.62,0.00021369,4]
[365344538,1749611442327,-2351.84,0.00021369,4]
[365344539,1749611442337,-460.0,0.00021369,4]
[365344540,1749611442347,-460.0,0.00021369,4]
[365344541,1749611442357,-460.0,0.00021369,4]
[365344542,1749611442366,-204.53612188,0.00021369,4]
[365344543,1749611442376,-460.0,0.00021369,4]
[365344544,1749611442385,-491.01,0.00021369,4]
[365344545,1749611442395,-460.0,0.00021369,4]
[365344546,1749611442404,-420.0,0.00021369,4]
[365344547,1749611442414,-460.0,0.00021369,4]
[365344548,1749611442423,-1780.24,0.00021369,4]
[365344549,1749611442432,-460.0,0.00021369,4]
[365344550,1749611442442,-420.0,0.00021369,4]
[365344551,1749611442451,-1357.43,0.00021369,4]
[365344552,1749611442461,-460.0,0.00021369,4]
[365344554,1749611442565,-420.0,0.00021369,4]
[365344555,1749611442575,-2382.77,0.00021369,4]
[365344556,1749611442585,-1293.71,0.00021369,4]
[365344557,1749611442595,-460.0,0.00021369,4]
[365344558,1749611442604,-460.0,0.00021369,4]
[365344559,1749611442615,-771.31,0.00021369,4]
[365344560,1749611442624,-930.26,0.00021369,4]
[365344561,1749611442634,-460.0,0.00021369,4]
[365344562,1749611442643,-502.74,0.00021369,4]
[365344563,1749611442653,-460.0,0.00021369,4]
[365344565,1749611442663,-421.66916897,0.00021373,2]
[365344566,1749611442672,-500.0,0.00021373,2]
[365344567,1749611442681,-500.0,0.00021373,2]
[365344568,1749611442691,-200.12013536,0.00021373,2]
[365344569,1749611442700,-500.0,0.00021373,2]
[365344570,1749611442711,-501.26190894,0.00021373,2]
[365344571,1749611442720,-500.0,0.00021373,2]
[365344572,1749611442730,-501.59031998,0.00021373,2]
[365344573,1749611442740,-503.51490656,0.00021373,2]
[365344574,1749611442750,-502.31464502,0.00021373,2]
[365344575,1749611442759,-261.63319524,0.00021559,2]
[365344576,1749611442770,-423.47541884,0.00021643,4]
[365344577,1749611442780,-460.0,0.00021643,4]
[365344578,1749611442789,-460.0,0.00021643,4]
[365344579,1749611442799,-299.9073917,0.00021643,4]
[365344580,1749611442809,-460.0,0.00021643,4]
[365344581,1749611442819,-460.0,0.00021643,4]
[365344582,1749611442828,-460.0,0.00021643,4]
[365344583,1749611442838,-460.0,0.00021643,4]
[365344584,1749611442848,-460.0,0.00021643,4]
[365344585,1749611442859,-460.0,0.00021643,4]
[365344586,1749611442871,-460.0,0.00021643,4]
[365344588,1749611442881,-466.42,0.00021643,4]
[365344590,1749611442890,-460.0,0.00021643,4]
[365344592,1749611442900,-460.0,0.00021643,4]
[365344594,1749611442912,-2568.64,0.00021643,4]
[365344597,1749611442922,-460.0,0.00021643,4]
[365344598,1749611442931,-1074.54,0.00021643,4]
[365344601,1749611442943,-898.9,0.00021643,4]
[365344603,1749611442957,-571.52,0.00021643,4]
[365344605,1749611442966,-460.0,0.00021643,4]
[365344607,1749611442976,-460.0,0.00021643,4]
[365344609,1749611442986,-420.0,0.00021643,4]
[365344611,1749611442995,-460.0,0.00021643,4]
[365344613,1749611443005,-460.0,0.00021643,4]
[365344615,1749611443014,-180.0,0.00021643,4]
[365344617,1749611443026,-2431.91,0.00021643,4]
[365344619,1749611443036,-460.0,0.00021643,2]
[365344621,1749611443046,-639.53,0.00021643,4]
[365344623,1749611443056,-1104.85,0.00021643,4]
[365344625,1749611443066,-1801.09,0.00021643,4]
[365344627,1749611443075,-570.89,0.00021643,4]
[365344629,1749611443088,-1105.45,0.00021643,4]
[365344632,1749611443098,-1228.62,0.00021643,4]
[365344634,1749611443109,-414.36294163,0.00021643,4]
[365344636,1749611443119,-2351.84,0.00021643,4]
[365344638,1749611443129,-460.0,0.00021643,4]
[365344640,1749611443139,-340.731486,0.00021643,4]
[365344641,1749611443148,-460.0,0.00021643,4]
[365344643,1749611443158,-491.01,0.00021643,4]
[365344646,1749611443168,-460.0,0.00021643,4]
[365344648,1749611443178,-520.61050951,0.00021643,4]
[365344649,1749611443188,-1780.24,0.00021643,4]
[365344652,1749611443198,-460.0,0.00021643,4]
[365344653,1749611443207,-1357.43,0.00021643,4]
[365344656,1749611443218,-460.0,0.00021643,4]
[365344658,1749611443228,-2382.77,0.00021643,4]
[365344660,1749611443238,-1293.71,0.00021643,4]
[365344662,1749611443248,-460.0,0.00021643,4]
[365344663,1749611443258,-460.0,0.00021643,4]
[365344665,1749611443268,-771.31,0.00021643,4]
[365344667,1749611443278,-930.26,0.00021643,4]
[365344670,1749611443288,-364.20076393,0.00021643,4]
[365344672,1749611443299,-502.74,0.00021643,4]
[365344674,1749611443308,-452.87713543,0.00021643,4]
[365344676,1749611443317,-967.23,0.00021733,2]
[365344678,1749611443332,-587.54209348,0.0002181,2]
[365344681,1749611443347,-1162.56686773,0.00021817,2]
[365344683,1749611443357,-449.90769174,0.00021867,2]
[365344685,1749611443367,-208.97807299,0.00021877,2]
[365344687,1749611443378,-8024.42096404,0.000219,6]
[365344689,1749611443387,-460.0,0.00021917,4]
[365344691,1749611443397,-235.02021438,0.00021917,4]
[365344693,1749611443407,-460.0,0.00021917,4]
[365344695,1749611443417,-460.0,0.00021917,4]
[365344697,1749611443427,-460.0,0.00021917,4]
[365344699,1749611443436,-460.0,0.00021917,4]
[365344701,1749611443446,-460.0,0.00021917,4]
[365344703,1749611443456,-460.0,0.00021917,4]
[365344705,1749611443467,-460.0,0.00021917,4]
[365344707,1749611443476,-460.0,0.00021917,4]
[365344709,1749611443485,-460.0,0.00021917,4]
[365344711,1749611443496,-2568.64,0.00021917,4]
[365344713,1749611443506,-460.0,0.00021917,4]
[365344716,1749611443517,-1074.54,0.00021917,4]
[365344717,1749611443527,-898.9,0.00021917,4]
[365344719,1749611443537,-571.52,0.00021917,4]
[365344721,1749611443547,-460.0,0.00021917,4]
[365344723,1749611443557,-460.0,0.00021917,4]
[365344726,1749611443567,-460.0,0.00021917,4]
[365344728,1749611443577,-460.0,0.00021917,4]
[365344730,1749611443586,-2431.91,0.00021917,4]
[365344732,1749611443596,-460.0,0.00021917,2]
[365344734,1749611443606,-639.53,0.00021917,4]
[365344736,1749611443616,-1104.85,0.00021917,4]
[365344738,1749611443625,-1801.09,0.00021917,4]
[365344740,1749611443634,-570.89,0.00021917,4]
[365344742,1749611443644,-1105.45,0.00021917,4]
[365344744,1749611443654,-1228.62,0.00021917,4]
[365344746,1749611443664,-2351.84,0.00021917,4]
[365344748,1749611443674,-460.0,0.00021917,4]
[365344750,1749611443683,-460.0,0.00021917,4]
[365344752,1749611443693,-491.01,0.00021917,4]
[365344754,1749611443703,-460.0,0.00021917,4]
[365344756,1749611443712,-1780.24,0.00021917,4]
[365344758,1749611443722,-460.0,0.00021917,4]
[365344760,1749611443731,-1357.43,0.00021917,4]
[365344762,1749611443741,-460.0,0.00021917,4]
[365344764,1749611443751,-2382.77,0.00021917,4]
[365344766,1749611443760,-1293.71,0.00021917,4]
[365344768,1749611443770,-460.0,0.00021917,4]
[365344770,1749611443779,-460.0,0.00021917,4]
[365344772,1749611443789,-771.31,0.00021917,4]
[365344775,1749611443799,-930.26,0.00021917,4]
[365344777,1749611443809,-502.74,0.00021917,4]
[365344779,1749611443819,-503.96951609,0.00021921,2]
[365344781,1749611443828,-1000.0,0.00021921,2]
[365344783,1749611443838,-506.16225976,0.00021921,2]
[365344784,1749611443847,-501.56200485,0.00021921,2]
[365344787,1749611443857,-197.0,0.00022,2]
[365344789,1749611443869,-8024.42096402,0.00022003,6]
[365344791,1749611443879,-364.9269501,0.00022082,2]
[365344793,1749611443888,-8024.42096402,0.00022107,6]
[365344795,1749611443897,-700.0,0.0002216,2]
[365344797,1749611443907,-460.0,0.00022191,4]
[365344799,1749611443917,-384.86192728,0.00022191,4]
[365344801,1749611443926,-360.0,0.00022191,4]
[365344803,1749611443935,-460.0,0.00022191,4]
[365344805,1749611443947,-460.0,0.00022191,4]
[365344807,1749611443960,-460.0,0.00022191,4]
[365344809,1749611443969,-460.0,0.00022191,4]
[365344811,1749611443978,-460.0,0.00022191,4]
[365344813,1749611443988,-588.24621237,0.00022191,4]
[365344814,1749611443997,-460.0,0.00022191,4]
[365344815,1749611444007,-2568.64,0.00022191,4]
[365344816,1749611444017,-460.0,0.00022191,4]
[365344817,1749611444027,-1074.54,0.00022191,4]
[365344818,1749611444036,-898.9,0.00022191,4]
[365344819,1749611444045,-571.52,0.00022191,4]
[365344820,1749611444055,-460.0,0.00022191,4]
[365344821,1749611444064,-460.0,0.00022191,4]
[365344822,1749611444073,-460.0,0.00022191,4]
[365344823,1749611444082,-460.0,0.00022191,4]
[365344824,1749611444092,-2431.91,0.00022191,4]
[365344825,1749611444101,-460.0,0.00022191,2]
[365344826,1749611444111,-639.53,0.00022191,4]
[365344827,1749611444120,-1104.85,0.00022191,4]
[365344828,1749611444129,-1801.09,0.00022191,4]